[Event "Live Chess"]
[Site "Chess.com"]
[Date "2024.06.02"]
[Round "-"]
[White "Crowded_House"]
[Black "MagnersCarlsberg2870"]
[Result "0-1"]
[WhiteElo "1688"]
[BlackElo "1826"]
[TimeControl "300"]
[EndTime "23:58:53 PDT"]
[Termination "MagnersCarlsberg2870 won by resignation"]

1. d4 {[%clk 0:04:55.3]} 1... e5 {[%clk 0:04:58.9]} 2. dxe5 {[%clk 0:04:53.2]}
2... Bc5 {[%clk 0:04:57.2]} 3. Nf3 {[%clk 0:04:51.5]} 3... d6 {[%clk 0:04:44]}
4. e3 {[%clk 0:04:47.9]} 4... Nc6 {[%clk 0:04:40.8]} 5. c3 {[%clk 0:04:45.4]}
5... f6 {[%clk 0:04:39.5]} 6. exd6 {[%clk 0:04:42]} 6... Bxd6 {[%clk 0:04:33.8]}
7. Bb5 {[%clk 0:04:38.3]} 7... Bd7 {[%clk 0:04:31.4]} 8. O-O {[%clk 0:04:35.8]}
8... Qe7 {[%clk 0:04:29.6]} 9. b3 {[%clk 0:04:22.6]} 9... Nh6 {[%clk 0:04:25.4]}
10. Bb2 {[%clk 0:04:18.7]} 10... Ng4 {[%clk 0:04:23.8]} 11. h3 {[%clk
0:04:15.9]} 11... h6 {[%clk 0:04:21.3]} 12. hxg4 {[%clk 0:04:09.4]} 12... h5
{[%clk 0:04:19.7]} 13. gxh5 {[%clk 0:03:54.6]} 13... Rxh5 {[%clk 0:04:18.1]} 14.
Nd4 {[%clk 0:03:37.5]} 14... Qf7 {[%clk 0:03:55.7]} 15. Nxc6 {[%clk 0:03:34.6]}
15... bxc6 {[%clk 0:03:49.6]} 16. Be2 {[%clk 0:03:22.7]} 16... Rh6 {[%clk
0:03:33.3]} 17. Bg4 {[%clk 0:03:21.6]} 17... g5 {[%clk 0:03:15.5]} 18. Bxd7+
{[%clk 0:03:18.7]} 18... Kxd7 {[%clk 0:03:14.6]} 19. Qg4+ {[%clk 0:03:15]} 19...
f5 {[%clk 0:03:06.3]} 20. Qxg5 {[%clk 0:03:09.3]} 20... Bh2+ {[%clk 0:03:01.1]}
21. Kh1 {[%clk 0:03:06.4]} 21... Bf4+ {[%clk 0:03:00.1]} 22. Kg1 {[%clk
0:03:05.6]} 22... Bxg5 {[%clk 0:02:59.2]} 0-1

[Event "Live Chess"]
[Site "Chess.com"]
[Date "2024.06.02"]
[Round "-"]
[White "GerardATHart"]
[Black "FlyingChessKestrel13"]
[Result "0-1"]
[WhiteElo "1378"]
[BlackElo "2074"]
[TimeControl "300"]
[EndTime "23:58:55 PDT"]
[Termination "FlyingChessKestrel13 won by resignation"]

1. e4 {[%clk 0:04:56.2]} 1... c5 {[%clk 0:04:59]} 2. Nc3 {[%clk 0:04:54]} 2...
Nc6 {[%clk 0:04:58.3]} 3. Bb5 {[%clk 0:04:52]} 3... a6 {[%clk 0:04:54.7]} 4.
Bxc6 {[%clk 0:04:50.6]} 4... bxc6 {[%clk 0:04:54.1]} 5. f4 {[%clk 0:04:49.1]}
5... g6 {[%clk 0:04:52.1]} 6. Nf3 {[%clk 0:04:47.6]} 6... Bg7 {[%clk 0:04:51.5]}
7. O-O {[%clk 0:04:46]} 7... d6 {[%clk 0:04:50.8]} 8. d3 {[%clk 0:04:43.8]} 8...
Bg4 {[%clk 0:04:49.8]} 9. Be3 {[%clk 0:04:41.9]} 9... Nf6 {[%clk 0:04:48.9]} 10.
Qe1 {[%clk 0:04:38.2]} 10... O-O {[%clk 0:04:46.9]} 11. h3 {[%clk 0:04:34.5]}
11... Bxf3 {[%clk 0:04:44.6]} 12. Rxf3 {[%clk 0:04:33.3]} 12... Rb8 {[%clk
0:04:43.8]} 13. b3 {[%clk 0:04:29.2]} 13... d5 {[%clk 0:04:41]} 14. e5 {[%clk
0:04:26.5]} 14... d4 {[%clk 0:04:39.2]} 15. exf6 {[%clk 0:04:25.3]} 15... Bxf6
{[%clk 0:04:38.4]} 16. Ne4 {[%clk 0:04:21.2]} 16... dxe3 {[%clk 0:04:37.6]} 17.
Nxf6+ {[%clk 0:04:19.3]} 17... exf6 {[%clk 0:04:37.5]} 18. Rxe3 {[%clk 0:04:16]}
18... Qd4 {[%clk 0:04:37.1]} 19. g3 {[%clk 0:03:58.6]} 19... Rfe8 {[%clk
0:04:32.5]} 20. Kf2 {[%clk 0:03:55.5]} 20... Rxe3 {[%clk 0:04:30.7]} 0-1

[Event "Live Chess"]
[Site "Chess.com"]
[Date "2024.06.02"]
[Round "-"]
[White "Tatarinov_Maxim"]
[Black "Crowded_House"]
[Result "1-0"]
[WhiteElo "2274"]
[BlackElo "1687"]
[TimeControl "300"]
[EndTime "23:59:59 PDT"]
[Termination "Tatarinov_Maxim won by resignation"]

1. Nf3 {[%clk 0:04:56.2]} 1... e6 {[%clk 0:04:59.3]} 2. g3 {[%clk 0:04:54.5]}
2... d5 {[%clk 0:04:58.9]} 3. Bg2 {[%clk 0:04:53.8]} 3... c5 {[%clk 0:04:58]} 4.
O-O {[%clk 0:04:53]} 4... Nc6 {[%clk 0:04:57.5]} 5. d4 {[%clk 0:04:52.2]} 5...
Qb6 {[%clk 0:04:54.8]} 6. dxc5 {[%clk 0:04:44.3]} 6... Bxc5 {[%clk 0:04:52.6]}
7. Nc3 {[%clk 0:04:42.8]} 7... Qc7 {[%clk 0:04:40.6]} 8. Bf4 {[%clk 0:04:38.9]}
8... Bd6 {[%clk 0:04:37]} 9. Nb5 {[%clk 0:04:37.1]} 9... Qb8 {[%clk 0:04:30]}
10. Bxd6 {[%clk 0:04:34.9]} 10... Qxd6 {[%clk 0:04:27.6]} 11. Nxd6+ {[%clk
0:04:34]} 11... Kd7 {[%clk 0:04:27.3]} 12. Nxf7 {[%clk 0:04:32.5]} 1-0

[Event "Live Chess"]
[Site "Chess.com"]
[Date "2024.06.02"]
[Round "-"]
[White "vincents82"]
[Black "JanMur7"]
[Result "0-1"]
[WhiteElo "1999"]
[BlackElo "2263"]
[TimeControl "300"]
[EndTime "0:00:28 PDT"]
[Termination "JanMur7 won by resignation"]

1. e4 {[%clk 0:04:55.3]} 1... g6 {[%clk 0:04:57.9]} 2. d4 {[%clk 0:04:50.3]}
2... Bg7 {[%clk 0:04:56.9]} 3. Nc3 {[%clk 0:04:49.9]} 3... c5 {[%clk 0:04:55.8]}
4. Nf3 {[%clk 0:04:48.5]} 4... cxd4 {[%clk 0:04:54.5]} 5. Nxd4 {[%clk
0:04:47.4]} 5... Nc6 {[%clk 0:04:54.1]} 6. Be3 {[%clk 0:04:46.5]} 6... Nf6
{[%clk 0:04:52.5]} 7. Be2 {[%clk 0:04:45.3]} 7... d6 {[%clk 0:04:48.9]} 8. f3
{[%clk 0:04:40.2]} 8... h5 {[%clk 0:04:40.4]} 9. Qd2 {[%clk 0:04:38]} 9... Bd7
{[%clk 0:04:36.8]} 10. O-O {[%clk 0:04:36.8]} 10... a6 {[%clk 0:04:35.6]} 11.
Nd5 {[%clk 0:04:35]} 11... O-O {[%clk 0:04:32.8]} 12. Nxc6 {[%clk 0:04:25.8]}
12... Bxc6 {[%clk 0:04:28.3]} 13. c4 {[%clk 0:04:24]} 13... Nxd5 {[%clk
0:04:21]} 14. cxd5 {[%clk 0:04:21.7]} 14... Bd7 {[%clk 0:04:19.7]} 15. Rac1
{[%clk 0:04:19]} 15... Rc8 {[%clk 0:04:16.1]} 16. Qb4 {[%clk 0:04:17]} 16... b5
{[%clk 0:04:08.8]} 17. Rxc8 {[%clk 0:03:59.6]} 17... Qxc8 {[%clk 0:04:04.8]} 18.
Rc1 {[%clk 0:03:58.4]} 18... Qb7 {[%clk 0:04:03.7]} 19. a4 {[%clk 0:03:53.8]}
19... Rc8 {[%clk 0:03:56.4]} 20. Rxc8+ {[%clk 0:03:49.7]} 20... Qxc8 {[%clk
0:03:56.3]} 21. axb5 {[%clk 0:03:48.9]} 21... axb5 {[%clk 0:03:55.5]} 22. Bxb5
{[%clk 0:03:44.8]} 22... Qb7 {[%clk 0:03:54.3]} 23. Qa5 {[%clk 0:03:40.9]} 23...
Bxb5 {[%clk 0:03:49]} 24. Qd8+ {[%clk 0:03:39]} 24... Kh7 {[%clk 0:03:48.1]} 25.
g4 {[%clk 0:03:29]} 25... hxg4 {[%clk 0:03:45.9]} 26. fxg4 {[%clk 0:03:27.5]}
26... Qd7 {[%clk 0:03:43.6]} 0-1

[Event "Live Chess"]
[Site "Chess.com"]
[Date "2024.06.02"]
[Round "-"]
[White "Ksenia_2013"]
[Black "Dhaydon19"]
[Result "0-1"]
[WhiteElo "970"]
[BlackElo "2673"]
[TimeControl "300"]
[EndTime "0:00:57 PDT"]
[Termination "Dhaydon19 won by checkmate"]

1. d4 {[%clk 0:04:56.6]} 1... e6 {[%clk 0:04:59.6]} 2. e4 {[%clk 0:04:54.9]}
2... d5 {[%clk 0:04:58.1]} 3. exd5 {[%clk 0:04:53.4]} 3... exd5 {[%clk
0:04:56.8]} 4. Nf3 {[%clk 0:04:48.8]} 4... Nf6 {[%clk 0:04:55.9]} 5. Bg5 {[%clk
0:04:47]} 5... Be7 {[%clk 0:04:55.6]} 6. Bb5+ {[%clk 0:04:44.1]} 6... c6 {[%clk
0:04:54.2]} 7. Bd3 {[%clk 0:04:42.6]} 7... O-O {[%clk 0:04:53.5]} 8. Ne5 {[%clk
0:04:35.1]} 8... Nbd7 {[%clk 0:04:51.4]} 9. Bxf6 {[%clk 0:04:33.1]} 9... Bxf6
{[%clk 0:04:48.7]} 10. Qh5 {[%clk 0:04:30.3]} 10... g6 {[%clk 0:04:47.3]} 11.
Nxg6 {[%clk 0:04:27]} 11... fxg6 {[%clk 0:04:45.9]} 12. Qh6 {[%clk 0:04:20.7]}
12... Bg5 {[%clk 0:04:42.6]} 13. Qh3 {[%clk 0:04:09.4]} 13... Ne5 {[%clk
0:04:40.4]} 14. Qg3 {[%clk 0:04:01.7]} 14... Bf4 {[%clk 0:04:39.3]} 15. dxe5
{[%clk 0:03:46.3]} 15... Bxg3 {[%clk 0:04:37]} 16. hxg3 {[%clk 0:03:43.9]} 16...
Qg5 {[%clk 0:04:36.3]} 17. O-O {[%clk 0:03:42.2]} 17... Qxe5 {[%clk 0:04:33.7]}
18. Nc3 {[%clk 0:03:38.2]} 18... Bg4 {[%clk 0:04:31.9]} 19. Rfe1 {[%clk
0:03:33.6]} 19... Qd4 {[%clk 0:04:30.2]} 20. Re3 {[%clk 0:03:24.9]} 20... Rae8
{[%clk 0:04:28.3]} 21. Rae1 {[%clk 0:03:18.8]} 21... Rxe3 {[%clk 0:04:26.7]} 22.
fxe3 {[%clk 0:03:15.5]} 22... Qe5 {[%clk 0:04:24.7]} 23. e4 {[%clk 0:03:04.6]}
23... Qxg3 {[%clk 0:04:22.6]} 24. exd5 {[%clk 0:03:01.2]} 24... Qxe1+ {[%clk
0:04:20.6]} 25. Kh2 {[%clk 0:02:58.9]} 25... Qh4+ {[%clk 0:04:18.5]} 26. Kg1
{[%clk 0:02:56]} 26... Qf2+ {[%clk 0:04:17.3]} 27. Kh2 {[%clk 0:02:53.3]} 27...
Bf3 {[%clk 0:04:16.9]} 28. dxc6 {[%clk 0:02:43.7]} 28... Qxg2# {[%clk
0:04:14.9]} 0-1

[Event "Live Chess"]
[Site "Chess.com"]
[Date "2024.06.02"]
[Round "-"]
[White "peteopeteo"]
[Black "ProfPoisson"]
[Result "1-0"]
[WhiteElo "1549"]
[BlackElo "1299"]
[TimeControl "300"]
[EndTime "0:00:58 PDT"]
[Termination "peteopeteo won by resignation"]

1. e4 {[%clk 0:04:59.5]} 1... e5 {[%clk 0:04:56.4]} 2. Nf3 {[%clk 0:04:58.6]}
2... Nf6 {[%clk 0:04:53.7]} 3. Nc3 {[%clk 0:04:57.5]} 3... Nc6 {[%clk
0:04:50.7]} 4. Bc4 {[%clk 0:04:56.4]} 4... Nxe4 {[%clk 0:04:47.5]} 5. Nxe4
{[%clk 0:04:48.6]} 5... d5 {[%clk 0:04:42.7]} 6. Bxd5 {[%clk 0:04:36.4]} 6...
Qxd5 {[%clk 0:04:39.8]} 7. d3 {[%clk 0:04:31.1]} 7... Bg4 {[%clk 0:04:34.2]} 8.
h3 {[%clk 0:04:28.3]} 8... Bh5 {[%clk 0:04:28.9]} 9. g4 {[%clk 0:04:03]} 9...
Bg6 {[%clk 0:04:26.5]} 10. Qe2 {[%clk 0:04:02.2]} 10... O-O-O {[%clk 0:04:22.5]}
11. Bd2 {[%clk 0:03:51.8]} 11... Nd4 {[%clk 0:03:57.2]} 12. Nxd4 {[%clk
0:03:42.3]} 12... Qxd4 {[%clk 0:03:53.1]} 13. Bc3 {[%clk 0:03:25.9]} 13... Bb4
{[%clk 0:03:36.4]} 14. O-O-O {[%clk 0:03:17.6]} 14... Bxc3 {[%clk 0:03:32.8]}
15. Nxc3 {[%clk 0:03:17.5]} 15... Qb6 {[%clk 0:03:16.5]} 16. Qe3 {[%clk
0:03:10.4]} 16... Rhe8 {[%clk 0:03:10.3]} 17. Qxb6 {[%clk 0:03:07.8]} 17... axb6
{[%clk 0:03:07.1]} 18. h4 {[%clk 0:02:55.2]} 18... h5 {[%clk 0:03:04]} 19. f3
{[%clk 0:02:50.3]} 19... e4 {[%clk 0:02:56]} 20. dxe4 {[%clk 0:02:39]} 20...
hxg4 {[%clk 0:02:52.6]} 21. Rxd8+ {[%clk 0:02:35.7]} 21... Rxd8 {[%clk
0:02:49.5]} 22. fxg4 {[%clk 0:02:34.1]} 22... c5 {[%clk 0:02:35.9]} 23. h5
{[%clk 0:02:29.9]} 23... Bh7 {[%clk 0:02:33]} 24. Rf1 {[%clk 0:02:29]} 24... f6
{[%clk 0:02:24.2]} 25. Re1 {[%clk 0:02:15.4]} 25... Kc7 {[%clk 0:02:20.2]} 26.
Nd5+ {[%clk 0:02:12.4]} 26... Kc6 {[%clk 0:02:14.7]} 27. c4 {[%clk 0:02:02.1]}
27... b5 {[%clk 0:02:07.2]} 28. b3 {[%clk 0:01:46]} 28... bxc4 {[%clk
0:02:04.4]} 29. bxc4 {[%clk 0:01:45.9]} 29... b5 {[%clk 0:01:56.3]} 30. cxb5+
{[%clk 0:01:40.1]} 30... Kxb5 {[%clk 0:01:54.7]} 31. Nc7+ {[%clk 0:01:34.3]}
31... Kc4 {[%clk 0:01:43]} 32. Ne6 {[%clk 0:01:32.6]} 32... Re8 {[%clk
0:01:35.6]} 33. Nxg7 {[%clk 0:01:24.3]} 33... Rxe4 {[%clk 0:01:33]} 34. Rxe4+
{[%clk 0:01:19.6]} 34... Bxe4 {[%clk 0:01:31.4]} 35. Nf5 {[%clk 0:01:18.8]}
35... Kd5 {[%clk 0:00:47.8]} 36. h6 {[%clk 0:01:15.2]} 36... Bxf5 {[%clk
0:00:39.7]} 37. gxf5 {[%clk 0:01:14.2]} 37... Kd6 {[%clk 0:00:37.5]} 38. h7
{[%clk 0:01:13.6]} 38... Ke5 {[%clk 0:00:36.5]} 39. h8=Q {[%clk 0:01:12.3]} 1-0

[Event "Live Chess"]
[Site "Chess.com"]
[Date "2024.06.02"]
[Round "-"]
[White "Ferrarifan27"]
[Black "VIDYUTGANESH"]
[Result "1-0"]
[WhiteElo "2118"]
[BlackElo "1750"]
[TimeControl "300"]
[EndTime "0:01:06 PDT"]
[Termination "Ferrarifan27 won by resignation"]

1. e4 {[%clk 0:04:58.4]} 1... e5 {[%clk 0:04:58.7]} 2. Nf3 {[%clk 0:04:55.7]}
2... Nc6 {[%clk 0:04:56.9]} 3. Bb5 {[%clk 0:04:53.4]} 3... d6 {[%clk 0:04:55]}
4. O-O {[%clk 0:04:48.5]} 4... Ne7 {[%clk 0:04:52.9]} 5. d4 {[%clk 0:04:44]}
5... exd4 {[%clk 0:04:52.8]} 6. Nxd4 {[%clk 0:04:42.9]} 6... g6 {[%clk
0:04:51.5]} 7. Bg5 {[%clk 0:04:38.4]} 7... Bd7 {[%clk 0:04:46.5]} 8. Bf6 {[%clk
0:04:31.3]} 8... Rg8 {[%clk 0:04:43]} 9. Nxc6 {[%clk 0:04:21.8]} 9... bxc6
{[%clk 0:04:36.9]} 10. Bc4 {[%clk 0:04:19.9]} 10... Bg7 {[%clk 0:04:35.6]} 11.
Qf3 {[%clk 0:04:12.1]} 11... Be6 {[%clk 0:04:09]} 12. Bxe6 {[%clk 0:04:09]}
12... fxe6 {[%clk 0:04:07.8]} 13. Bxg7 {[%clk 0:04:08]} 13... Rxg7 {[%clk
0:04:06.8]} 14. Qf6 {[%clk 0:04:07.4]} 14... Rf7 {[%clk 0:04:01.2]} 15. Qxe6
{[%clk 0:04:06.3]} 15... Qd7 {[%clk 0:03:58.9]} 16. Qxd7+ {[%clk 0:04:05]} 16...
Kxd7 {[%clk 0:03:57.8]} 17. Nc3 {[%clk 0:04:04.5]} 17... Raf8 {[%clk 0:03:45]}
18. Rad1 {[%clk 0:03:55.5]} 18... Ng8 {[%clk 0:03:39.9]} 19. f3 {[%clk
0:03:53.2]} 19... h5 {[%clk 0:03:35]} 20. Rfe1 {[%clk 0:03:51.4]} 20... g5
{[%clk 0:03:33.5]} 21. e5 {[%clk 0:03:48.6]} 21... Re7 {[%clk 0:03:17.6]} 22.
exd6 {[%clk 0:03:39.9]} 22... Rxe1+ {[%clk 0:03:14.7]} 23. Rxe1 {[%clk
0:03:38.6]} 23... cxd6 {[%clk 0:03:14.2]} 24. Ne4 {[%clk 0:03:35.9]} 24... g4
{[%clk 0:03:11.8]} 25. fxg4 {[%clk 0:03:32.4]} 25... hxg4 {[%clk 0:03:10.1]} 26.
Rf1 {[%clk 0:03:31]} 26... Re8 {[%clk 0:02:58.2]} 27. Rf7+ {[%clk 0:03:22.3]}
27... Ke6 {[%clk 0:02:25.8]} 28. Rxa7 {[%clk 0:03:19.8]} 28... Kd5 {[%clk
0:02:24.7]} 29. Nc3+ {[%clk 0:03:14.8]} 29... Kd4 {[%clk 0:02:21.5]} 30. Ra4+
{[%clk 0:03:11.5]} 30... Ke3 {[%clk 0:02:15.9]} 31. Rxg4 {[%clk 0:03:07.7]}
31... Kd2 {[%clk 0:02:15.5]} 32. Rd4+ {[%clk 0:02:58.2]} 32... Kxc2 {[%clk
0:02:14.1]} 33. Rxd6 {[%clk 0:02:57.5]} 33... Kxb2 {[%clk 0:02:13.3]} 34. Rxc6
{[%clk 0:02:56.5]} 34... Ne7 {[%clk 0:02:00.9]} 35. Rc7 {[%clk 0:02:43.1]} 35...
Nf5 {[%clk 0:01:52]} 36. Kf2 {[%clk 0:02:37]} 36... Nd4 {[%clk 0:01:36.4]} 37.
g4 {[%clk 0:02:24]} 37... Rg8 {[%clk 0:01:11.7]} 38. Kg3 {[%clk 0:02:22.3]}
38... Nf5+ {[%clk 0:01:03.1]} 39. Kf4 {[%clk 0:02:18]} 39... Nd4 {[%clk
0:00:59.8]} 40. Rc4 {[%clk 0:02:13.2]} 40... Ne6+ {[%clk 0:00:55.6]} 41. Kg3
{[%clk 0:02:10.9]} 41... Nd4 {[%clk 0:00:35.3]} 42. Rxd4 {[%clk 0:02:08.6]}
42... Kxc3 {[%clk 0:00:34.5]} 43. Rf4 {[%clk 0:02:06.6]} 43... Kb2 {[%clk
0:00:33.1]} 44. a4 {[%clk 0:02:04.3]} 44... Kb3 {[%clk 0:00:32.6]} 45. h4 {[%clk
0:02:03]} 1-0

[Event "Live Chess"]
[Site "Chess.com"]
[Date "2024.06.02"]
[Round "-"]
[White "Greenbecker"]
[Black "WeakOldFinished"]
[Result "0-1"]
[WhiteElo "1698"]
[BlackElo "2182"]
[TimeControl "300"]
[EndTime "0:01:43 PDT"]
[Termination "WeakOldFinished won by resignation"]

1. e4 {[%clk 0:04:56.6]} 1... e5 {[%clk 0:04:57.8]} 2. Nf3 {[%clk 0:04:55.8]}
2... Nf6 {[%clk 0:04:55.9]} 3. Nxe5 {[%clk 0:04:49.5]} 3... Nxe4 {[%clk
0:04:54.6]} 4. Nc3 {[%clk 0:04:47.5]} 4... Nxc3 {[%clk 0:04:46.3]} 5. dxc3
{[%clk 0:04:46.1]} 5... Qe7 {[%clk 0:04:45.4]} 6. Qe2 {[%clk 0:04:43.9]} 6... d6
{[%clk 0:04:43.8]} 7. Nf3 {[%clk 0:04:42.1]} 7... Qxe2+ {[%clk 0:04:42.7]} 8.
Bxe2 {[%clk 0:04:41.2]} 8... Be7 {[%clk 0:04:42.3]} 9. O-O {[%clk 0:04:39.8]}
9... O-O {[%clk 0:04:41.4]} 10. Re1 {[%clk 0:04:38.9]} 10... Bf6 {[%clk
0:04:38.3]} 11. Bd3 {[%clk 0:04:34.3]} 11... Nd7 {[%clk 0:04:36.4]} 12. Bf4
{[%clk 0:04:29.2]} 12... Nc5 {[%clk 0:04:34.9]} 13. Rad1 {[%clk 0:04:25.3]}
13... Nxd3 {[%clk 0:04:33.3]} 14. cxd3 {[%clk 0:04:23.9]} 14... Be6 {[%clk
0:04:30.1]} 15. a3 {[%clk 0:04:21.5]} 15... Rfe8 {[%clk 0:04:28.5]} 16. d4
{[%clk 0:04:18.1]} 16... Bd5 {[%clk 0:04:25.8]} 17. Nd2 {[%clk 0:04:13.7]} 17...
h6 {[%clk 0:04:23.2]} 18. Kf1 {[%clk 0:04:09.3]} 18... b5 {[%clk 0:04:14.1]} 19.
f3 {[%clk 0:04:06.9]} 19... a5 {[%clk 0:04:05.2]} 20. Rxe8+ {[%clk 0:04:04.7]}
20... Rxe8 {[%clk 0:04:03.5]} 21. Re1 {[%clk 0:04:02.9]} 21... Rb8 {[%clk
0:04:01.6]} 22. Ne4 {[%clk 0:03:57.9]} 22... Bxe4 {[%clk 0:03:56.5]} 23. fxe4
{[%clk 0:03:53.7]} 23... b4 {[%clk 0:03:55.7]} 24. axb4 {[%clk 0:03:49.8]} 24...
axb4 {[%clk 0:03:54.7]} 25. e5 {[%clk 0:03:47.9]} 25... dxe5 {[%clk 0:03:50.2]}
26. Bxe5 {[%clk 0:03:44]} 26... Bxe5 {[%clk 0:03:40]} 27. Rxe5 {[%clk
0:03:40.2]} 27... bxc3 {[%clk 0:03:33.7]} 28. bxc3 {[%clk 0:03:38]} 28... f6
{[%clk 0:03:24.8]} 29. Rc5 {[%clk 0:03:36.1]} 29... Rb7 {[%clk 0:03:23.8]} 30.
Ke2 {[%clk 0:03:34.9]} 30... Kf7 {[%clk 0:03:23.2]} 31. Kd3 {[%clk 0:03:34]}
31... Ke6 {[%clk 0:03:22.8]} 32. Kc4 {[%clk 0:03:30.2]} 32... Kd6 {[%clk
0:03:22.1]} 33. Rd5+ {[%clk 0:03:22.5]} 33... Ke6 {[%clk 0:03:20.2]} 34. Rc5
{[%clk 0:03:18.3]} 34... h5 {[%clk 0:03:14.1]} 35. Rxh5 {[%clk 0:03:13.1]} 35...
Rb2 {[%clk 0:03:13]} 36. g3 {[%clk 0:03:04.3]} 36... g5 {[%clk 0:03:11.8]} 37.
Rh6 {[%clk 0:02:47.7]} 37... Kf5 {[%clk 0:03:08.1]} 38. Kd5 {[%clk 0:02:38.6]}
38... Rb5+ {[%clk 0:03:02.8]} 39. Kc4 {[%clk 0:02:32.3]} 39... Rb7 {[%clk
0:02:54.7]} 40. h4 {[%clk 0:02:22.6]} 40... g4 {[%clk 0:02:53.4]} 41. d5 {[%clk
0:02:01.7]} 41... Rb2 {[%clk 0:02:47.6]} 42. Rh7 {[%clk 0:01:38.3]} 42... Rg2
{[%clk 0:02:42.6]} 43. Rxc7 {[%clk 0:01:36.7]} 43... Rxg3 {[%clk 0:02:42.2]} 44.
d6 {[%clk 0:01:35.6]} 44... Rg1 {[%clk 0:02:40]} 45. d7 {[%clk 0:01:34]} 45...
Rd1 {[%clk 0:02:38.5]} 46. Rc5+ {[%clk 0:01:27.8]} 46... Ke6 {[%clk 0:02:37.6]}
47. h5 {[%clk 0:01:15.7]} 47... Rxd7 {[%clk 0:02:35.2]} 48. h6 {[%clk
0:01:13.8]} 48... g3 {[%clk 0:02:29.3]} 49. Rc6+ {[%clk 0:01:09.1]} 49... Kf5
{[%clk 0:02:24.9]} 50. Rc5+ {[%clk 0:01:04.2]} 50... Kg6 {[%clk 0:02:23.8]} 51.
h7 {[%clk 0:01:03.1]} 51... Rxh7 {[%clk 0:02:21.3]} 52. Rd5 {[%clk 0:00:59.5]}
52... f5 {[%clk 0:02:16.4]} 53. Kd3 {[%clk 0:00:57.2]} 53... Kg5 {[%clk
0:02:15.2]} 54. Ke3 {[%clk 0:00:56.3]} 54... Kg4 {[%clk 0:02:14.6]} 55. Rd1
{[%clk 0:00:54.1]} 55... f4+ {[%clk 0:02:13.6]} 56. Ke2 {[%clk 0:00:52.1]} 56...
Re7+ {[%clk 0:02:11.8]} 57. Kf1 {[%clk 0:00:50.8]} 57... f3 {[%clk 0:02:10.9]}
58. c4 {[%clk 0:00:46.9]} 58... Rh7 {[%clk 0:01:59.7]} 59. Kg1 {[%clk
0:00:45.2]} 59... f2+ {[%clk 0:01:55.5]} 60. Kf1 {[%clk 0:00:43.3]} 60... Rh1+
{[%clk 0:01:54]} 0-1

[Event "Live Chess"]
[Site "Chess.com"]
[Date "2024.06.02"]
[Round "-"]
[White "MagnersCarlsberg2870"]
[Black "GerardATHart"]
[Result "1-0"]
[WhiteElo "1827"]
[BlackElo "1377"]
[TimeControl "300"]
[EndTime "0:01:55 PDT"]
[Termination "MagnersCarlsberg2870 won by resignation"]

1. d4 {[%clk 0:04:56.9]} 1... Nf6 {[%clk 0:04:58]} 2. Nf3 {[%clk 0:04:55.2]}
2... g6 {[%clk 0:04:56.7]} 3. Nc3 {[%clk 0:04:54.3]} 3... Bg7 {[%clk 0:04:55]}
4. e4 {[%clk 0:04:53.4]} 4... d6 {[%clk 0:04:50.4]} 5. h3 {[%clk 0:04:52.6]}
5... O-O {[%clk 0:04:48.4]} 6. Bc4 {[%clk 0:04:51.5]} 6... Nbd7 {[%clk 0:04:41]}
7. e5 {[%clk 0:04:50.3]} 7... dxe5 {[%clk 0:04:39.5]} 8. dxe5 {[%clk 0:04:49.3]}
8... Nh5 {[%clk 0:04:27.6]} 9. g4 {[%clk 0:04:48]} 9... Nxe5 {[%clk 0:04:20.6]}
10. Nxe5 {[%clk 0:04:05.5]} 10... Bxe5 {[%clk 0:04:07.4]} 11. gxh5 {[%clk
0:04:01]} 11... Bf5 {[%clk 0:03:55.4]} 12. Qxd8 {[%clk 0:03:58.6]} 12... Raxd8
{[%clk 0:03:53.4]} 13. hxg6 {[%clk 0:03:56.8]} 13... Bxg6 {[%clk 0:03:47.9]} 14.
Bd2 {[%clk 0:03:54.7]} 14... Bh5 {[%clk 0:03:45]} 15. Rg1+ {[%clk 0:03:52.2]}
15... Kh8 {[%clk 0:03:43]} 16. Rg5 {[%clk 0:03:49.3]} 16... Bxc3 {[%clk
0:03:30.8]} 17. Bxc3+ {[%clk 0:03:47.9]} 17... f6 {[%clk 0:03:29.9]} 18. Rxh5
{[%clk 0:03:44.6]} 1-0

[Event "Live Chess"]
[Site "Chess.com"]
[Date "2024.06.02"]
[Round "-"]
[White "NAZRIZ1977"]
[Black "JohanKjeldahl"]
[Result "1-0"]
[WhiteElo "2105"]
[BlackElo "1853"]
[TimeControl "300"]
[EndTime "0:02:35 PDT"]
[Termination "NAZRIZ1977 won by resignation"]

1. c4 {[%clk 0:04:56.1]} 1... Nf6 {[%clk 0:04:58.1]} 2. g3 {[%clk 0:04:54.8]}
2... e5 {[%clk 0:04:54.5]} 3. Bg2 {[%clk 0:04:53.4]} 3... c6 {[%clk 0:04:52.8]}
4. d4 {[%clk 0:04:52.5]} 4... exd4 {[%clk 0:04:50.9]} 5. Qxd4 {[%clk 0:04:51.7]}
5... d5 {[%clk 0:04:47.6]} 6. Nf3 {[%clk 0:04:43.7]} 6... Bd6 {[%clk 0:04:38.8]}
7. cxd5 {[%clk 0:04:41.6]} 7... Nxd5 {[%clk 0:04:36.7]} 8. O-O {[%clk
0:04:35.5]} 8... O-O {[%clk 0:04:34.4]} 9. Rd1 {[%clk 0:04:33.7]} 9... Be7
{[%clk 0:04:09.6]} 10. Nbd2 {[%clk 0:04:23.6]} 10... Be6 {[%clk 0:04:06.2]} 11.
a3 {[%clk 0:04:16.3]} 11... Qb6 {[%clk 0:04:02.8]} 12. Ne4 {[%clk 0:04:07.6]}
12... Nd7 {[%clk 0:03:56.2]} 13. b4 {[%clk 0:03:54.9]} 13... N7f6 {[%clk
0:03:44.5]} 14. Neg5 {[%clk 0:03:49.2]} 14... Qxd4 {[%clk 0:03:34.3]} 15. Nxd4
{[%clk 0:03:46.2]} 15... Nc7 {[%clk 0:03:15.3]} 16. Ngxe6 {[%clk 0:03:36.7]}
16... fxe6 {[%clk 0:03:08.5]} 17. Bb2 {[%clk 0:03:18.3]} 17... Ng4 {[%clk
0:03:05.8]} 18. Rf1 {[%clk 0:03:04.8]} 18... e5 {[%clk 0:02:59.4]} 19. Nb3
{[%clk 0:02:55.9]} 19... Rad8 {[%clk 0:02:57.4]} 20. h3 {[%clk 0:02:52.3]} 20...
Nf6 {[%clk 0:02:47.6]} 21. Bxe5 {[%clk 0:02:50.7]} 21... Ncd5 {[%clk 0:02:44.1]}
22. Na5 {[%clk 0:02:45.7]} 22... Rd7 {[%clk 0:02:38.2]} 23. Rad1 {[%clk
0:02:40]} 23... Rfd8 {[%clk 0:02:34.7]} 24. h4 {[%clk 0:02:16.2]} 24... Kf7
{[%clk 0:02:30.2]} 25. Bh3 {[%clk 0:02:14.5]} 25... Ne4 {[%clk 0:02:12.8]} 26.
Bxd7 {[%clk 0:02:11.6]} 26... Rxd7 {[%clk 0:02:11.9]} 27. Rd3 {[%clk 0:01:59.5]}
27... g6 {[%clk 0:02:06.5]} 28. Rfd1 {[%clk 0:01:55]} 28... Ke6 {[%clk
0:02:05.3]} 29. Bb2 {[%clk 0:01:53.1]} 29... h5 {[%clk 0:01:44.3]} 30. Nb3
{[%clk 0:01:51.4]} 30... g5 {[%clk 0:01:29.4]} 31. Re3 {[%clk 0:01:42.4]} 31...
Nf6 {[%clk 0:01:12.4]} 32. Rxd7 {[%clk 0:01:30.5]} 32... Kxd7 {[%clk 0:01:10.6]}
33. Bxf6 {[%clk 0:01:23.8]} 33... Nxf6 {[%clk 0:01:07.1]} 34. hxg5 {[%clk
0:01:23.1]} 1-0